bitfinex-derivatives/quotes_SOLF0:USTF0_20260305
["timestamp","ask_amount","ask_price","bid_price","bid_amount"]
[1772695304773,3.47046914,91.1,91.054,4.38033384]
[1772695305374,9.877,91.105,91.058,4.36315695]
[1772695305675,3.47046914,91.1,91.058,4.36315695]
[1772695305870,3.47046914,91.11,91.066,9.881]
[1772695306763,3.47046914,91.1,91.059,4.36315695]
[1772695309676,9.878,91.097,91.059,4.36315695]
[1772695311571,3.47046914,91.1,91.048,4.32940219]
[1772695312374,3.47046914,91.09,91.048,4.32940219]
[1772695313275,3.47046914,91.1,91.048,4.32940219]
[1772695313474,9.879,91.082,91.048,4.32940219]
[1772695313873,9.878,91.09,91.048,4.32940219]
[1772695314077,9.878,91.09,91.051,4.33759899]
[1772695315479,3.47046914,91.09,91.051,4.33759899]
[1772695316381,9.878,91.089,91.051,4.33759899]
[1772695321285,9.878,91.089,91.002,19.776]
[1772695321286,3.47046914,91.08,91.035,4.3502035]
[1772695322586,3.47046914,91.08,91.037,4.3502035]
[1772695322887,26.364,91.11,91.041,4.3502035]
[1772695322888,3.47046914,91.1,91.041,4.3502035]
[1772695323089,3.47046914,91.09,91.041,4.3502035]
[1772695323984,3.47046914,91.09,91.048,4.3482312]
[1772695325486,9.879,91.089,91.048,4.3482312]
[1772695326384,3.47046914,91.08,91.048,4.3482312]
[1772695326688,9.879,91.089,91.048,4.3482312]
[1772695333480,8.28879954,91.108,91.002,19.776]
[1772695333481,29.83446914,91.11,91.061,4.34214146]
[1772695334483,3.47046914,91.13,91.072,4.33859402]
[1772695335090,13.64461393,91.176,91.111,4.33859402]
[1772695335291,3.47046914,91.17,91.12,3.47046914]
[1772695335488,3.47046914,91.16,91.111,4.33859402]
[1772695335693,3.47046914,91.13,91.086,4.33859402]
[1772695336789,3.47046914,91.13,91.088,9.879]
[1772695338596,3.47046914,91.12,91.074,4.33381707]
[1772695339494,3.47046914,91.11,91.074,4.33381707]
[1772695341097,3.47046914,91.11,91.062,4.34364252]
[1772695341799,3.47046914,91.15,91.101,4.34364252]
[1772695342698,9.873,91.143,91.101,4.34364252]
[1772695343094,9.874,91.135,91.101,4.34364252]
[1772695344297,9.874,91.135,91.09,3.47046914]
[1772695344902,9.874,91.127,91.089,4.3729996]
[1772695345399,9.874,91.127,91.09,3.47046914]
[1772695347907,9.874,91.127,91.09,7.83498085]
[1772695348594,9.874,91.127,91.091,4.36173258]
[1772695349903,9.875,91.119,91.091,4.36173258]
[1772695352707,9.874,91.13,91.091,4.36173258]
[1772695354210,9.874,91.13,91.1,3.46733927]
[1772695354409,9.874,91.13,91.1,7.79361472]
[1772695354607,9.874,91.13,91.101,4.32627545]
[1772695357107,26.364,91.155,91.101,4.32627545]
[1772695357616,26.364,91.182,91.11,3.46733927]
[1772695357811,3.46733927,91.17,91.12,3.46733927]
[1772695358009,26.364,91.169,91.12,3.46733927]
[1772695358711,26.364,91.169,91.111,4.32452461]
[1772695359111,3.46733927,91.19,91.14,3.46733927]
[1772695359504,9.867,91.191,91.141,4.31524068]
[1772695361614,9.868,91.186,91.141,4.31524068]
[1772695363710,9.869,91.178,91.141,4.31524068]
[1772695367218,3.46733927,91.22,91.161,4.32547981]
[1772695367422,3.46733927,91.22,91.17,7.79281908]
[1772695367721,3.46733927,91.22,91.17,4.32547981]
[1772695368514,9.867,91.198,91.17,4.32547981]
[1772695369124,3.64494315,91.199,91.15,3.46733927]
[1772695370527,9.867,91.192,91.15,3.46733927]
[1772695370919,3.64494315,91.199,91.15,3.46733927]
[1772695372123,3.64494315,91.199,91.15,7.20458746]
[1772695372424,9.868,91.184,91.15,7.20458746]
[1772695373424,9.868,91.184,91.151,3.73724819]
[1772695374420,9.867,91.193,91.151,3.73724819]
[1772695374625,9.867,91.193,91.161,3.73724819]
[1772695374823,9.867,91.193,91.16,3.46733927]
[1772695374824,3.68510141,91.215,91.171,3.73724819]
[1772695375023,9.865,91.214,91.18,3.46733927]
[1772695375920,9.866,91.206,91.171,3.73724819]
[1772695376234,3.68510141,91.209,91.161,3.73724819]
[1772695376426,0.06917126,91.198,91.161,3.73724819]
[1772695376719,0.06917126,91.198,91.16,3.46733927]
[1772695376720,0.06917126,91.198,91.171,3.73724819]
[1772695377332,3.46733927,91.21,91.171,3.73724819]
[1772695378323,3.46733927,91.2,91.157,3.73724819]
[1772695379525,9.866,91.206,91.157,3.73724819]
[1772695379923,9.867,91.199,91.157,3.73724819]
[1772695380523,7.14513603,91.2,91.157,3.73724819]
[1772695380723,7.14513603,91.2,91.15,3.46733927]
[1772695380724,7.09359066,91.18,91.137,3.73724819]
[1772695381522,3.46733927,91.17,91.125,3.73724819]
[1772695381721,7.09359066,91.17,91.125,3.73724819]
[1772695382425,7.09359066,91.17,91.075,20.08298839]
[1772695382426,3.63392385,91.159,91.112,3.73724819]
[1772695382631,3.46733927,91.15,91.112,3.73724819]
[1772695383229,3.46733927,91.14,91.099,3.73724819]
[1772695383734,3.46733927,91.13,91.086,3.73724819]
[1772695384234,3.63392385,91.139,91.086,3.73724819]
[1772695384437,3.63392385,91.139,91.091,3.73724819]
[1772695386239,3.46733927,91.15,91.101,3.73724819]
[1772695387529,3.46733927,91.15,91.102,9.877]
[1772695387928,3.46733927,91.15,91.103,3.73724819]
[1772695388938,3.52086319,91.149,91.103,3.73724819]
[1772695391035,3.52086319,91.149,91.103,13.61424819]
[1772695391735,3.52086319,91.149,91.11,9.876]
[1772695392541,3.52086319,91.149,91.104,3.73724819]
[1772695393542,3.46733927,91.13,91.091,9.878]
[1772695394538,3.47136366,91.139,91.091,13.61524819]
[1772695394735,3.47136366,91.139,91.092,3.73724819]
[1772695396745,3.50876646,91.137,91.092,3.73724819]
[1772695399445,26.364,91.183,91.075,3.82753167]
[1772695399446,3.52998264,91.119,91.075,3.82753167]
[1772695400944,3.52998264,91.119,91.076,9.88]
[1772695401247,3.52998264,91.119,91.077,3.82753167]
[1772695401747,3.46733927,91.13,91.081,3.82753167]
[1772695401940,26.364,91.17,91.101,3.82753167]
[1772695401941,3.52131833,91.168,91.101,3.82753167]
[1772695402137,3.52131833,91.15,91.11,3.46733927]
[1772695403848,3.52131833,91.15,91.05,20.08298839]
[1772695403849,3.53348588,91.179,91.121,3.82753167]
[1772695405438,3.53348588,91.179,91.139,9.873]
[1772695406948,3.53348588,91.179,91.131,9.874]
[1772695407143,3.09456797,91.169,91.131,9.874]
[1772695407750,3.09456797,91.169,91.121,3.82753167]
[1772695407948,3.07254133,91.159,91.113,9.876]
[1772695408849,3.07254133,91.159,91.113,13.44357659]
[1772695409351,3.07254133,91.159,91.114,3.56757659]
[1772695411152,9.871,91.158,91.114,3.56757659]
[1772695411449,3.0736378,91.157,91.114,3.56757659]
[1772695411853,3.0736378,91.155,91.114,3.56757659]
[1772695413545,9.872,91.154,91.114,3.56757659]
[1772695416554,3.0736378,91.155,91.114,3.56757659]
[1772695419051,3.0736378,91.155,91.115,9.876]
[1772695419256,3.0736378,91.155,91.116,3.56757659]
[1772695420452,3.0736378,91.155,91.121,9.875]
[1772695423355,3.03774623,91.169,91.128,9.874]
[1772695426661,3.03774623,91.169,91.135,9.873]
[1772695426867,3.07632168,91.183,91.141,3.56757659]
[1772695428163,1.90915076,91.2,91.154,9.871]
[1772695428164,9.867,91.194,91.154,9.871]
[1772695428555,9.867,91.194,91.15,3.46544087]
[1772695428762,9.867,91.194,91.15,7.63637143]
[1772695428963,3.83466688,91.208,91.161,4.17093056]
[1772695429159,3.83466688,91.208,91.12,19.751]
[1772695429160,3.83466688,91.219,91.18,3.46544087]
[1772695429467,3.83466688,91.219,91.18,4.17093056]
[1772695430469,9.865,91.217,91.18,4.17093056]
[1772695434969,9.866,91.208,91.17,3.46544087]
[1772695435174,3.83466688,91.207,91.165,4.17093056]
[1772695435973,7.30010775,91.24,91.191,4.17093056]
[1772695436271,3.83466688,91.219,91.178,4.17093056]
[1772695436973,13.33044087,91.21,91.16,3.46544087]
[1772695437178,3.83466688,91.209,91.162,4.17093056]
[1772695438576,9.866,91.205,91.162,4.17093056]
[1772695441374,9.867,91.197,91.162,4.17093056]
[1772695442374,3.78699615,91.205,91.162,4.17093056]
[1772695442672,26.364,91.239,91.105,20.08298839]
[1772695442673,3.46544087,91.23,91.171,4.17093056]
[1772695442979,13.6360223,91.229,91.172,4.17093056]
[1772695443179,3.7730223,91.228,91.172,4.17093056]
[1772695443777,9.865,91.217,91.172,4.17093056]
[1772695444971,7.2227418,91.22,91.172,4.17093056]
[1772695445177,3.75730093,91.219,91.172,4.17093056]
[1772695446381,3.75730093,91.219,91.173,14.03993056]
[1772695446579,3.46544087,91.22,91.174,4.17093056]
[1772695446779,3.69665373,91.234,91.191,4.17093056]
[1772695447180,3.69665373,91.234,91.191,14.03793056]
[1772695447377,9.863,91.235,91.192,4.17093056]
[1772695447580,9.863,91.235,91.136,19.747]
[1772695447581,3.69665373,91.246,91.201,4.17093056]
[1772695447784,9.861,91.252,91.202,4.17093056]
[1772695448383,3.46544087,91.25,91.202,4.17093056]
[1772695448884,9.861,91.249,91.202,4.17093056]
[1772695449179,3.69196195,91.248,91.202,4.17093056]
[1772695450380,9.861,91.246,91.202,4.17093056]
[1772695453187,9.862,91.239,91.202,4.17093056]
[1772695455385,13.55296195,91.248,91.202,4.17093056]
[1772695455684,3.48063667,91.247,91.202,4.17093056]
[1772695455886,3.48063667,91.239,91.202,4.17093056]
[1772695456387,3.48063667,91.239,91.191,4.17093056]
[1772695456785,3.49169347,91.228,91.18,3.46544087]
[1772695457284,3.49169347,91.228,91.181,4.17093056]
[1772695458086,0.06923389,91.214,91.181,4.17093056]
[1772695458485,9.863,91.23,91.191,4.17093056]
[1772695459988,3.15821137,91.227,91.188,0.06922743]
[1772695461490,9.864,91.225,91.188,0.06922743]
[1772695466599,3.15821137,91.227,91.189,3.77803381]
[1772695469202,3.15821137,91.227,91.19,3.46544087]
[1772695471003,3.15821137,91.227,91.189,3.77803381]
[1772695471801,3.1429586,91.225,91.188,0.06922743]
[1772695474204,9.863,91.231,91.188,3.65873432]
[1772695474405,3.17029236,91.237,91.19,3.46017259]
[1772695474595,3.17029236,91.237,91.191,3.58950689]
[1772695475398,3.17029236,91.237,91.193,3.58950689]
[1772695476211,3.17029236,91.237,91.201,3.58950689]
[1772695477008,9.861,91.249,91.21,3.46017259]
[1772695477207,9.861,91.249,91.211,3.58950689]
[1772695477710,2.97225853,91.269,91.225,3.58950689]
[1772695477909,3.46017259,91.26,91.201,3.58950689]
[1772695478108,3.46017259,91.25,91.201,3.58950689]
[1772695479011,9.86,91.257,91.201,3.58950689]
[1772695479012,12.83421471,91.257,91.201,3.58950689]
[1772695479403,12.83421471,91.257,91.202,3.58950689]
[1772695480810,3.10649028,91.256,91.22,0.07016008]
[1772695481207,6.56666287,91.25,91.22,0.07016008]
[1772695481413,3.10649028,91.249,91.22,0.07016008]
[1772695481708,3.46017259,91.24,91.202,3.58950689]
[1772695482305,3.10649028,91.249,91.202,3.58950689]
[1772695482511,9.862,91.241,91.202,3.58950689]
[1772695485719,0.07039304,91.231,91.202,3.58950689]
[1772695487721,0.07039304,91.231,91.21,7.04967948]
[1772695487915,0.07039304,91.231,91.211,3.58950689]
[1772695488221,9.861,91.251,91.211,3.58950689]
[1772695488420,9.861,91.251,91.211,3.65868991]
[1772695488622,26.364,91.289,91.221,3.58950689]
[1772695488623,9.86,91.261,91.221,3.58950689]
[1772695488822,9.86,91.261,91.23,3.46017259]
[1772695489622,9.86,91.261,91.221,3.58950689]
[1772695489829,13.19327076,91.261,91.221,3.58950689]
[1772695490527,9.86,91.261,91.221,3.58950689]
[1772695493133,9.86,91.261,91.232,0.06926462]
[1772695497234,3.13905671,91.269,91.232,0.06926462]
[1772695497631,9.859,91.268,91.232,0.06926462]
[1772695497931,3.46017259,91.27,91.232,3.92788817]
[1772695498127,9.86,91.259,91.232,0.06926462]
[1772695498631,3.13905671,91.269,91.232,0.06926462]
[1772695499422,9.859,91.268,91.232,0.06926462]
[1772695499624,3.14814649,91.267,91.232,0.06926462]
[1772695501735,9.86,91.26,91.232,0.06926462]
[1772695502629,3.14814649,91.267,91.232,0.06926462]
[1772695503136,3.15507107,91.259,91.232,0.06926462]
[1772695503734,3.15507107,91.259,91.22,3.85862355]
[1772695504136,3.15507107,91.259,91.236,0.07024906]
[1772695504635,3.15507107,91.259,91.21,13.32517259]
[1772695505035,3.15507107,91.259,91.211,3.85862355]
[1772695505538,12.99926989,91.258,91.211,3.85862355]
[1772695506140,3.13926989,91.257,91.211,3.85862355]
[1772695506638,9.86,91.258,91.211,3.85862355]
[1772695506639,3.12983746,91.254,91.211,3.85862355]
[1772695507240,3.12983746,91.254,91.213,9.865]
[1772695507439,3.12983746,91.254,91.214,3.85862355]
[1772695508841,3.24776694,91.249,91.205,9.866]
[1772695509141,0.06963907,91.243,91.205,9.866]
[1772695509342,3.24776694,91.242,91.195,3.85862355]
[1772695509535,3.24776694,91.239,91.197,9.867]
[1772695509740,3.24776694,91.239,91.19,3.46017259]
[1772695510041,3.24776694,91.239,91.192,3.85862355]
[1772695510742,0.0701499,91.225,91.193,9.867]
[1772695515141,0.0701499,91.225,91.199,9.867]
[1772695516450,3.52553043,91.219,91.18,3.70685926]
[1772695516746,3.52553043,91.219,91.168,3.70685926]
[1772695516747,3.46017259,91.21,91.168,3.70685926]
[1772695517448,3.52553043,91.219,91.174,9.869]
[1772695517649,3.52553043,91.219,91.174,13.57585926]
[1772695523250,3.52553043,91.219,91.177,9.869]
[1772695523447,3.52553043,91.219,91.178,3.88498672]
[1772695523754,3.37818837,91.229,91.181,3.88498672]
[1772695524451,3.37818837,91.248,91.211,3.88498672]
[1772695524653,3.46017259,91.26,91.211,3.88498672]
[1772695524951,3.48878691,91.259,91.211,3.88498672]
[1772695525344,3.48878691,91.259,91.217,9.865]
[1772695526248,3.48878691,91.249,91.21,9.865]
[1772695528856,3.48878691,91.249,91.211,3.83461921]
[1772695531552,9.861,91.247,91.211,3.83461921]
[1772695531753,26.364,91.289,91.197,3.83461921]
[1772695531754,3.45467524,91.239,91.197,3.83461921]
[1772695533356,9.862,91.237,91.197,3.83461921]
[1772695533554,3.50334926,91.236,91.197,3.83461921]
[1772695533757,3.46017259,91.22,91.183,3.83461921]
[1772695533952,3.46017259,91.21,91.161,3.83461921]
[1772695534460,3.46241739,91.2,91.161,3.83461921]
[1772695534757,3.46241739,91.19,91.141,3.83461921]
[1772695534959,3.46241739,91.19,91.144,3.83461921]
[1772695535460,3.50329554,91.199,91.144,3.83461921]
[1772695536361,3.50329554,91.199,91.146,3.83461921]
[1772695537362,3.50329554,91.199,91.148,3.83461921]
[1772695537551,3.50329554,91.199,91.151,3.83461921]
[1772695537756,3.46241739,91.21,91.161,3.83461921]
[1772695538255,3.53109454,91.212,91.163,3.83461921]
[1772695538457,3.53109454,91.212,91.171,3.83461921]
[1772695539063,13.3764795,91.225,91.18,3.46241739]
[1772695539664,13.3764795,91.225,91.18,7.2970366]
[1772695539860,13.3764795,91.225,91.181,3.83461921]
[1772695540563,26.364,91.237,91.191,3.83461921]
[1772695540958,3.46241739,91.25,91.201,3.83461921]
[1772695541361,3.48619364,91.249,91.201,3.83461921]
[1772695541659,0.06982157,91.235,91.201,3.83461921]
[1772695541863,3.48619364,91.234,91.194,9.867]
[1772695542555,3.48619364,91.234,91.191,3.83461921]
[1772695545354,9.862,91.241,91.193,3.83461921]
[1772695545563,9.862,91.241,91.2,3.46241739]
[1772695547164,9.861,91.249,91.211,3.83461921]
[1772695548063,9.862,91.242,91.211,3.83461921]
[1772695550664,9.862,91.242,91.2,3.46241739]
[1772695550868,9.862,91.242,91.201,3.42878251]
[1772695551767,0.0696248,91.231,91.201,3.42878251]
[1772695553268,0.0696248,91.231,91.201,13.29478251]
[1772695553470,0.0696248,91.231,91.202,3.42878251]
[1772695555365,9.861,91.251,91.211,3.42878251]
[1772695558065,9.862,91.243,91.211,3.42878251]
[1772695558573,9.862,91.243,91.222,0.06916439]
[1772695558771,9.862,91.243,91.211,3.42878251]
[1772695558972,0.06923748,91.236,91.211,3.42878251]
[1772695560575,0.06923748,91.236,91.199,3.42878251]
[1772695560770,3.23513612,91.234,91.169,3.42878251]
[1772695560970,3.23513612,91.229,91.17,3.46241739]
[1772695561275,3.23513612,91.229,91.171,3.42878251]
[1772695561773,3.23513612,91.209,91.16,3.46241739]
[1772695561971,3.46241739,91.2,91.157,3.42878251]
[1772695562673,0.06932472,91.188,91.157,3.42878251]
[1772695563775,0.06932472,91.188,91.15,3.42878251]
[1772695566273,3.21075819,91.187,91.139,9.873]
[1772695566471,3.21075819,91.187,91.14,3.42878251]
[1772695566978,3.46241739,91.18,91.14,3.42878251]
[1772695569580,3.20704907,91.179,91.14,3.42878251]
[1772695570579,3.46241739,91.19,91.142,3.42878251]
[1772695571379,3.46241739,91.19,91.147,13.30078251]
[1772695571882,3.46241739,91.19,91.148,3.42878251]
[1772695574479,3.19533915,91.199,91.161,3.42878251]
[1772695574685,3.19533915,91.199,91.09,153.67]
[1772695574686,3.46241739,91.22,91.171,3.42878251]
[1772695574883,3.19533915,91.226,91.171,3.42878251]
[1772695575689,0.06953661,91.208,91.171,3.42878251]
[1772695576492,0.06953661,91.208,91.172,3.42878251]
[1772695583098,0.06953661,91.208,91.172,13.29778251]
[1772695583394,0.06953661,91.208,91.18,3.46241739]
[1772695584097,3.64997986,91.239,91.191,3.80182599]
[1772695585497,9.863,91.235,91.191,3.80182599]
[1772695587197,3.64997986,91.239,91.201,3.81691932]
[1772695588099,9.862,91.238,91.201,3.81691932]
[1772695589502,9.863,91.231,91.21,0.06955459]
[1772695593102,9.863,91.231,91.144,19.745]
[1772695593103,3.62150333,91.219,91.172,3.81691932]
[1772695593301,3.62150333,91.209,91.172,3.81691932]
[1772695596108,9.865,91.217,91.174,3.81691932]
[1772695596303,9.865,91.211,91.174,3.81691932]
[1772695596509,3.62150333,91.209,91.161,3.81691932]
[1772695596705,3.62150333,91.227,91.181,3.81691932]
[1772695596904,3.62150333,91.24,91.201,0.00091932]
[1772695597100,3.62150333,91.24,91.14,19.746]
[1772695597101,3.62150333,91.229,91.19,3.46139527]
[1772695598310,9.863,91.228,91.19,3.46139527]
[1772695598507,3.62150333,91.227,91.18,3.46139527]
[1772695598708,3.62150333,91.219,91.17,3.46139527]
[1772695600108,8.93061498,91.265,91.133,20.08298839]
[1772695600109,3.62150333,91.209,91.15,3.81691932]
[1772695600313,26.364,91.266,91.071,153.701]
[1772695600314,3.46139527,91.17,91.123,3.81691932]
[1772695600911,3.46139527,91.17,91.125,3.81691932]
[1772695601110,3.62150333,91.179,91.131,3.81691932]
[1772695601311,3.46139527,91.19,91.141,3.81691932]
[1772695601511,3.62150333,91.193,91.141,3.81691932]
[1772695601809,3.46139527,91.2,91.141,3.81691932]
[1772695602005,3.62150333,91.207,91.151,3.81691932]
[1772695602712,3.46139527,91.2,91.151,3.81691932]
[1772695603512,3.46139527,91.2,91.156,9.871]
[1772695604109,3.62150333,91.207,91.161,3.81691932]
[1772695605408,3.62150333,91.207,91.163,9.87]
[1772695607512,3.46139527,91.2,91.163,9.87]
[1772695608814,3.62150333,91.207,91.166,9.87]
[1772695609017,3.62150333,91.207,91.167,3.84476595]
[1772695611515,9.866,91.205,91.167,3.84476595]
[1772695612419,3.8741065,91.197,91.154,3.84476595]
[1772695612721,3.46139527,91.19,91.154,3.84476595]
[1772695613320,3.8741065,91.197,91.154,3.84476595]
[1772695615728,3.46139527,91.18,91.141,3.84476595]
[1772695615925,19.726,91.233,91.121,3.84476595]
[1772695615926,3.46139527,91.17,91.121,3.84476595]
[1772695616824,3.8741065,91.179,91.121,3.84476595]
[1772695617327,3.8741065,91.177,91.125,3.84476595]
[1772695618422,9.869,91.174,91.129,3.84476595]
[1772695618824,3.8741065,91.177,91.129,3.84476595]
[1772695619326,3.8741065,91.177,91.137,9.873]
[1772695619828,3.8741065,91.177,91.138,3.84476595]
[1772695620724,9.869,91.174,91.138,3.84476595]
[1772695621029,13.7431065,91.174,91.138,3.84476595]
[1772695621826,3.8741065,91.174,91.138,3.84476595]
[1772695622227,3.46139527,91.18,91.138,3.84476595]
[1772695622937,13.7431065,91.178,91.138,3.84476595]
[1772695623431,3.8741065,91.178,91.138,13.71776595]
[1772695623932,3.8741065,91.178,91.138,3.84476595]
[1772695624331,3.8741065,91.178,91.13,9.874]
[1772695624733,3.8741065,91.169,91.126,3.84476595]
[1772695625229,17.14256456,91.206,91.086,19.758]
[1772695625230,3.8741065,91.191,91.136,3.84476595]
[1772695625435,3.8741065,91.205,91.151,3.84476595]
[1772695625830,0.06930849,91.173,91.151,3.84476595]
[1772695629637,3.8741065,91.172,91.13,3.46139527]
[1772695629838,3.8741065,91.172,91.131,3.84476595]
[1772695632035,3.8741065,91.169,91.131,3.84476595]
[1772695633437,3.8741065,91.168,91.131,3.84476595]
[1772695634135,3.8741065,91.168,91.12,3.46139527]
[1772695634540,13.7441065,91.167,91.121,3.84476595]
[1772695635241,3.8741065,91.166,91.121,13.71976595]
[1772695638145,3.8741065,91.159,91.112,9.876]
[1772695638345,3.8741065,91.159,91.113,3.84476595]
[1772695639549,3.8741065,91.159,91.116,9.875]
[1772695639849,3.8741065,91.159,91.117,3.71375775]
[1772695641342,3.53106364,91.157,91.117,3.71375775]
[1772695641951,0.0694574,91.146,91.117,3.71375775]
[1772695643752,0.0694574,91.146,91.066,19.762]
[1772695643753,3.53106364,91.173,91.131,3.71375775]
[1772695645055,3.53106364,91.169,91.131,3.71375775]
[1772695645251,3.53106364,91.169,91.127,9.874]
[1772695645448,3.53106364,91.159,91.118,3.71375775]
[1772695646451,3.53106364,91.159,91.12,9.875]
[1772695649257,3.66498535,91.157,91.116,3.74036163]
[1772695649854,3.66498535,91.157,91.112,9.876]
[1772695650357,3.66498535,91.157,91.112,13.61636163]
[1772695651564,3.66498535,91.157,91.113,3.74036163]
[1772695653466,3.66498535,91.157,91.114,9.876]
[1772695653663,3.66498535,91.157,91.126,0.06946415]
[1772695656566,13.53598535,91.157,91.126,0.06946415]
[1772695656766,7.13082285,91.15,91.126,0.06946415]
[1772695657169,3.66498535,91.15,91.126,0.06946415]
[1772695659869,3.66498535,91.166,91.126,0.06946415]
[1772695660465,3.66498535,91.166,91.121,9.875]
[1772695660866,3.66498535,91.159,91.121,9.875]
[1772695661270,3.66498535,91.159,91.134,0.0698338]
[1772695663469,3.66498535,91.149,91.104,3.74036163]
[1772695664370,3.66498535,91.145,91.104,13.61736163]
[1772695664572,3.66498535,91.139,91.104,13.61736163]
[1772695664773,3.66498535,91.139,91.104,3.74036163]
[1772695665368,3.66498535,91.139,91.091,3.74036163]
[1772695665768,3.66498535,91.139,91.096,9.878]
[1772695667471,3.66498535,91.139,91.096,13.61836163]
[1772695670375,3.66498535,91.139,91.097,3.53094295]
[1772695673274,0.06961062,91.127,91.097,3.53094295]
[1772695679877,0.06961062,91.127,91.09,3.4658375]
[1772695679878,3.4658375,91.12,91.084,3.53094295]
[1772695680277,3.4658375,91.11,91.073,3.53094295]
[1772695680669,3.72628691,91.119,91.073,3.53094295]
[1772695680974,0.06947336,91.101,91.073,3.53094295]
[1772695681981,0.06947336,91.101,91.061,3.53094295]
[1772695683373,9.877,91.1,91.061,3.53094295]
[1772695685182,0.06947336,91.101,91.061,3.53094295]
[1772695685784,0.06947336,91.101,91.062,9.881]
[1772695685983,0.06947336,91.101,91.063,3.53094295]
[1772695688482,3.79576027,91.101,91.063,3.53094295]
[1772695688787,3.72628691,91.097,91.051,3.53094295]
[1772695689186,3.72628691,91.089,91.051,3.53094295]
[1772695689789,3.72628691,91.085,91.051,3.53094295]
[1772695693289,3.72628691,91.085,91.037,9.884]
[1772695693290,3.72628691,91.083,91.037,3.53094295]
[1772695693490,19.748,91.133,91.037,3.53094295]
[1772695693491,3.4658375,91.07,91.037,3.53094295]
[1772695693690,3.72628691,91.059,91.021,3.53094295]
[1772695694291,17.07312441,91.07,91.021,3.53094295]
[1772695694796,3.72628691,91.069,91.021,3.53094295]
[1772695696401,3.4658375,91.06,91.021,3.53094295]
[1772695699602,9.882,91.058,91.021,3.53094295]
[1772695708720,3.4658375,91.06,91.021,3.53094295]
[1772695709612,0.0694302,91.05,91.021,3.53094295]
[1772695713413,0.0694302,91.05,91.0,3.4658375]
[1772695713414,3.61292529,91.049,91.011,3.83711851]
[1772695713610,7.07876279,91.04,91.002,9.888]
[1772695713812,7.07876279,91.04,91.0,3.83711851]
[1772695714013,3.61292529,91.039,91.0,3.83711851]
[1772695716026,3.61292529,91.049,91.001,3.83711851]
[1772695716317,9.884,91.042,91.001,13.72511851]
[1772695716523,13.49692529,91.042,91.001,13.72511851]
[1772695716724,13.49692529,91.042,91.001,3.83711851]
[1772695717224,9.884,91.039,91.001,3.83711851]
[1772695719224,3.61292529,91.038,91.001,3.83711851]
[1772695719519,3.61292529,91.036,90.99,9.889]
[1772695719726,3.61292529,91.036,90.984,3.83711851]
[1772695720124,3.61292529,91.027,90.984,3.83711851]
[1772695721529,9.885,91.025,90.984,3.83711851]
[1772695722220,3.61292529,91.027,90.99,3.47459184]
[1772695723623,0.06929596,91.018,90.986,3.83711851]
[1772695723828,3.68222125,91.018,90.972,3.83711851]
[1772695724025,3.61292529,90.999,90.959,3.83711851]
[1772695724827,3.61292529,90.999,90.96,3.47459184]
[1772695725026,7.08751713,91.01,90.961,3.83711851]
[1772695726127,17.04576429,91.053,90.971,3.83711851]
[1772695726128,3.61292529,91.009,90.971,3.83711851]
[1772695726326,3.47459184,91.02,90.971,3.83711851]
[1772695726531,3.61292529,91.019,90.971,3.83711851]
[1772695726826,3.61292529,91.019,90.98,3.47459184]
[1772695727025,3.61292529,91.029,90.981,3.83711851]
[1772695728534,13.49792529,91.025,90.981,3.83711851]
[1772695730831,3.67637363,91.037,91.0,7.40017926]
[1772695731336,9.884,91.036,91.0,7.40017926]
[1772695732332,9.884,91.036,91.001,3.92558742]
[1772695732927,3.67637363,91.038,91.001,3.92558742]
[1772695733636,0.06931916,91.029,91.001,3.92558742]
[1772695734131,0.06931916,91.029,90.991,9.889]
[1772695734433,0.06931916,91.029,90.992,3.92558742]
[1772695734634,9.884,91.035,90.992,3.92558742]
[1772695736034,0.06938452,91.023,90.992,3.92558742]
[1772695736235,0.06938452,91.023,91.001,3.92558742]
[1772695741834,0.06938452,91.023,90.938,26.76080135]
[1772695741835,9.882,91.056,91.011,3.92558742]
[1772695742134,9.882,91.056,91.02,3.47459184]
[1772695742931,9.881,91.064,91.021,3.92558742]
[1772695743632,9.881,91.064,91.03,3.47459184]
[1772695744341,9.882,91.056,91.021,3.92558742]
[1772695744541,3.67637363,91.055,91.02,3.47459184]
[1772695745641,9.882,91.054,91.014,3.92558742]
[1772695746642,3.67637363,91.049,91.001,3.92558742]
[1772695747344,9.884,91.037,91.001,3.92558742]
[1772695748742,9.883,91.045,91.001,3.92558742]
[1772695749440,3.47459184,91.04,90.99,3.47459184]
[1772695749737,3.67637363,91.039,90.99,3.47459184]
[1772695750538,9.884,91.034,90.99,7.40017926]
[1772695750745,13.56037363,91.034,90.99,7.40017926]